bitfinex-derivatives/quotes_BTCF0:USTF0_20250929
["timestamp","ask_amount","ask_price","bid_price","bid_amount"]
[1759171119212,0.89994987,114050.0,114040.0,0.7216]
[1759171119413,0.49994987,114050.0,114040.0,0.7216]
[1759171120106,0.49994987,114050.0,114040.0,1.15800007]
[1759171121611,1.30058987,114050.0,114040.0,1.15800007]
[1759171123418,1.30058987,114050.0,114040.0,1.07036727]
[1759171123618,1.30058987,114050.0,114040.0,0.7216]
[1759171123919,1.70058987,114050.0,114040.0,0.3608]
[1759171125121,1.72028938,114050.0,114040.0,0.3608]
[1759171125817,1.72028938,114050.0,114040.0,0.70956727]
[1759171126513,0.1242728,114040.0,114030.0,0.3608]
[1759171126720,0.14204948,114030.0,114020.0,0.3608]
[1759171126918,0.51051626,114030.0,114020.0,1.59781547]
[1759171127422,0.58091156,114030.0,114020.0,0.79721547]
[1759171128124,0.51051626,114030.0,114020.0,0.79721547]
[1759171128420,0.51051626,114030.0,114020.0,0.4534482]
[1759171128621,0.50551626,114030.0,114020.0,0.80221547]
[1759171129221,0.50551626,114030.0,114020.0,0.79721547]
[1759171129411,0.15674899,114030.0,114020.0,0.80821547]
[1759171129614,0.50551626,114030.0,114020.0,0.80821547]
[1759171131722,0.50551626,114030.0,114020.0,0.72056727]
[1759171131923,0.50551626,114030.0,114020.0,0.3718]
[1759171132226,0.50551626,114030.0,114020.0,0.80821547]
[1759171133124,0.57689307,114030.0,114020.0,0.80821547]
[1759171135518,0.2281258,114030.0,114020.0,0.80821547]
[1759171135725,0.57689307,114030.0,114020.0,0.80821547]
[1759171139431,0.2281258,114030.0,114020.0,0.80821547]
[1759171139625,0.57689307,114030.0,114020.0,0.80821547]
[1759171139832,0.2281258,114030.0,114020.0,1.15698274]
[1759171146142,0.2281258,114030.0,114020.0,0.4594482]
[1759171146533,0.2281258,114030.0,114020.0,1.15698274]
[1759171146946,0.2281258,114030.0,114020.0,0.4594482]
[1759171147242,0.2281258,114030.0,114020.0,1.15698274]
[1759171155542,0.2281258,114030.0,114020.0,1.95750274]
[1759171157053,0.2281258,114030.0,114020.0,1.15698274]
[1759171157349,0.2281258,114030.0,114020.0,1.95750274]
[1759171159149,0.1221853,114030.0,114020.0,2.35750274]
[1759171159346,0.13844899,114030.0,114020.0,2.75353698]
[1759171159541,0.13844899,114030.0,114020.0,2.40476971]
[1759171159946,0.13844899,114030.0,114020.0,1.60424971]
[1759171160154,0.13844899,114030.0,114020.0,2.40476971]
[1759171160951,0.13844899,114030.0,114020.0,1.60424971]
[1759171161153,0.13844899,114030.0,114020.0,2.40476971]
[1759171164455,0.13844899,114030.0,114020.0,1.60424971]
[1759171164655,0.13844899,114030.0,114020.0,2.40472971]
[1759171165160,0.13844899,114030.0,114020.0,1.60424971]
[1759171165549,0.13844899,114030.0,114020.0,2.40472971]
[1759171165750,0.13844899,114030.0,114020.0,1.60424971]
[1759171166258,0.13844899,114030.0,114020.0,2.40472971]
[1759171167556,0.13844899,114030.0,114020.0,1.60424971]
[1759171167759,0.13844899,114030.0,114020.0,2.40472971]
[1759171168258,0.13844899,114030.0,114020.0,1.60424971]
[1759171168556,0.13844899,114030.0,114020.0,2.40472971]
[1759171174257,0.13844899,114030.0,114020.0,2.05602992]
[1759171175552,0.13844899,114030.0,114020.0,2.00876295]
[1759171175860,0.13844899,114030.0,114020.0,2.00872295]
[1759171179467,0.13844899,114030.0,114020.0,1.60872295]
[1759171185564,0.13844899,114030.0,114020.0,1.65598992]
[1759171190171,0.16110899,114030.0,114020.0,1.65590992]
[1759171190970,0.16113674,114030.0,114020.0,1.65590992]
[1759171192970,0.16113674,114030.0,114020.0,0.85554992]
[1759171193172,0.16113674,114030.0,114020.0,1.65590992]
[1759171194975,0.16113674,114030.0,114020.0,0.50671517]
[1759171195170,0.16113674,114030.0,114020.0,1.30707517]
[1759171195371,0.16113674,114030.0,114020.0,1.65590992]
[1759171196970,0.13847674,114030.0,114020.0,1.65590992]
[1759171197274,0.05083624,114030.0,114020.0,1.65590992]
[1759171197672,0.13847674,114030.0,114020.0,1.65590992]
[1759171200078,0.16113674,114030.0,114020.0,0.85554992]
[1759171200281,0.16113674,114030.0,114020.0,1.65586992]
[1759171202679,0.16113674,114030.0,114020.0,1.65582992]
[1759171203275,0.07349624,114030.0,114020.0,1.65582992]
[1759171203480,0.03749624,114030.0,114020.0,2.3573977]
[1759171203775,0.01334,114040.0,114030.0,0.0876405]
[1759171203971,0.01334,114040.0,114030.0,1.20879861]
[1759171204167,0.01334,114040.0,114030.0,1.19342316]
[1759171204372,0.01334,114040.0,114030.0,1.54611]
[1759171204681,0.0306046,114040.0,114030.0,1.54611]
[1759171205080,0.0306046,114040.0,114030.0,1.54711]
[1759171205381,0.0306046,114040.0,114030.0,1.59440739]
[1759171207480,0.1182374,114040.0,114030.0,0.9669509]
[1759171207679,0.1408974,114040.0,114030.0,2.4648604]
[1759171208186,0.1182374,114040.0,114030.0,2.4648604]
[1759171208480,0.0306046,114040.0,114030.0,2.4648604]
[1759171210076,0.0306046,114040.0,114030.0,2.39464739]
[1759171210779,0.0306046,114040.0,114030.0,1.59440739]
[1759171211184,0.1408974,114040.0,114030.0,0.84557264]
[1759171211379,0.1408974,114040.0,114030.0,1.67723607]
[1759171211581,0.0532646,114040.0,114030.0,1.67723607]
[1759171212084,0.0306046,114040.0,114030.0,2.02607082]
[1759171212287,0.1182374,114040.0,114030.0,2.02607082]
[1759171214382,0.1182374,114040.0,114030.0,1.22591082]
[1759171214578,0.1182374,114040.0,114030.0,2.02607082]
[1759171215486,0.1182374,114040.0,114030.0,1.22591082]
[1759171215784,0.1182374,114040.0,114030.0,2.02607082]
[1759171216977,0.0306046,114040.0,114030.0,1.22591082]
[1759171217181,0.1182374,114040.0,114030.0,1.22591082]
[1759171217387,0.1408974,114040.0,114030.0,1.67723607]
[1759171217684,0.1408974,114040.0,114030.0,0.87707607]
[1759171217886,0.1408974,114040.0,114030.0,1.32840132]
[1759171218185,0.1408974,114040.0,114030.0,1.67723607]
[1759171218584,0.0532646,114040.0,114030.0,1.67723607]
[1759171218785,0.1408974,114040.0,114030.0,0.87707607]
[1759171218979,0.1408974,114040.0,114030.0,1.67723607]
[1759171219987,0.0532646,114040.0,114030.0,1.67723607]
[1759171220580,0.0532646,114040.0,114030.0,1.62993868]
[1759171220782,0.1408975,114040.0,114030.0,0.82977868]
[1759171220977,0.88973225,114040.0,114030.0,0.39330343]
[1759171221381,0.88973225,114040.0,114030.0,0.3618]
[1759171222283,0.88973225,114040.0,114030.0,0.001]
[1759171222484,1.25053225,114040.0,114030.0,0.001]
[1759171222886,2.05081225,114040.0,114030.0,0.001]
[1759171223491,2.05073225,114040.0,114030.0,0.001]
[1759171224889,1.25053225,114040.0,114030.0,0.001]
[1759171225192,2.05069225,114040.0,114030.0,0.001]
[1759171225589,2.08215217,114040.0,114030.0,0.001]
[1759171226289,1.73331742,114040.0,114030.0,0.001]
[1759171226490,2.12934205,114040.0,114030.0,0.001]
[1759171227392,2.12938205,114040.0,114030.0,0.001]
[1759171227788,1.32918205,114040.0,114030.0,0.001]
[1759171228591,2.12938205,114040.0,114030.0,0.001]
[1759171234995,2.47845478,114040.0,114030.0,0.001]
[1759171235296,1.67825478,114040.0,114030.0,0.001]
[1759171235499,2.47845478,114040.0,114030.0,0.001]
[1759171235698,2.39980498,114040.0,114030.0,0.001]
[1759171236299,1.59960498,114040.0,114030.0,0.001]
[1759171236496,2.39984498,114040.0,114030.0,0.001]
[1759171238600,1.59960498,114040.0,114030.0,0.001]
[1759171238796,2.39984498,114040.0,114030.0,0.001]
[1759171239101,2.4313049,114040.0,114030.0,0.001]
[1759171239495,2.0313049,114040.0,114030.0,0.001]
[1759171240998,1.2310649,114040.0,114030.0,0.001]
[1759171241201,2.0313049,114040.0,114030.0,0.001]
[1759171242703,0.88211116,114040.0,114030.0,0.34995374]
[1759171242899,1.68235116,114040.0,114030.0,0.34995374]
[1759171243098,0.88211116,114040.0,114030.0,0.34995374]
[1759171243405,1.29009124,114040.0,114030.0,0.34995374]
[1759171243795,1.29009124,114040.0,114030.0,0.001]
[1759171244000,1.63904498,114040.0,114030.0,0.001]
[1759171245602,1.6705049,114040.0,114030.0,0.001]
[1759171246102,0.8702649,114040.0,114030.0,0.001]
[1759171246306,1.6705049,114040.0,114030.0,0.001]
[1759171247509,2.0313049,114040.0,114030.0,0.001]
[1759171248299,2.4313049,114040.0,114030.0,0.001]
[1759171249206,2.47849478,114040.0,114030.0,0.001]
[1759171249909,2.4313049,114040.0,114030.0,0.001]
[1759171250106,2.47849478,114040.0,114030.0,0.001]
[1759171251510,2.44703486,114040.0,114030.0,0.001]
[1759171255109,1.64679486,114040.0,114030.0,0.001]
[1759171255314,2.44703486,114040.0,114030.0,0.001]
[1759171255615,2.4785219,114040.0,114030.0,0.001]
[1759171256122,2.44703486,114040.0,114030.0,0.001]
[1759171256416,2.4785334,114040.0,114030.0,0.001]
[1759171256818,2.44703486,114040.0,114030.0,0.001]
[1759171261218,2.44835946,114040.0,114030.0,0.001]
[1759171262909,1.64811946,114040.0,114030.0,0.001]
[1759171263113,2.44835946,114040.0,114030.0,0.001]
[1759171264821,2.47986144,114040.0,114030.0,0.001]
[1759171265022,2.44835946,114040.0,114030.0,0.001]
[1759171265624,2.40116958,114040.0,114030.0,0.001]
[1759171270430,1.60092958,114040.0,114030.0,0.001]
[1759171270624,2.40116958,114040.0,114030.0,0.001]
[1759171271223,1.60092958,114040.0,114030.0,0.001]
[1759171271429,2.40116958,114040.0,114030.0,0.001]
[1759171273437,1.60092958,114040.0,114030.0,0.001]
[1759171273638,2.40116958,114040.0,114030.0,0.001]
[1759171274232,1.60092958,114040.0,114030.0,0.001]
[1759171274429,2.46416895,114040.0,114030.0,0.001]
[1759171274834,2.40112958,114040.0,114030.0,0.001]
[1759171275835,1.64820951,114040.0,114030.0,0.001]
[1759171276035,2.44840951,114040.0,114030.0,0.001]
[1759171279040,1.64820951,114040.0,114030.0,0.001]
[1759171279343,2.44840951,114040.0,114030.0,0.001]
[1759171279540,1.75050203,114040.0,114030.0,0.001]
[1759171279741,2.44840951,114040.0,114030.0,0.001]
[1759171282638,1.77025686,114040.0,114030.0,0.001]
[1759171282844,2.46816434,114040.0,114030.0,0.001]
[1759171285643,1.66796434,114040.0,114030.0,0.001]
[1759171285850,2.46816434,114040.0,114030.0,0.001]
[1759171286251,1.66796434,114040.0,114030.0,0.001]
[1759171286453,1.77025686,114040.0,114030.0,0.001]
[1759171286652,2.46816434,114040.0,114030.0,0.001]
[1759171287647,1.66796434,114040.0,114030.0,0.001]
[1759171287946,2.46816434,114040.0,114030.0,0.001]
[1759171288755,1.66796434,114040.0,114030.0,0.001]
[1759171288956,2.46816434,114040.0,114030.0,0.001]
[1759171289655,1.66796434,114040.0,114030.0,0.001]
[1759171289955,2.46816434,114040.0,114030.0,0.001]
[1759171290956,1.66796434,114040.0,114030.0,0.001]
[1759171291154,2.46816434,114040.0,114030.0,0.001]
[1759171292058,1.66796434,114040.0,114030.0,0.001]
[1759171292259,2.46816434,114040.0,114030.0,0.001]
[1759171293861,2.06816434,114040.0,114030.0,0.34995374]
[1759171294459,1.71916657,114040.0,114030.0,0.001]
[1759171295057,0.91896657,114040.0,114030.0,0.001]
[1759171295351,1.71912657,114040.0,114030.0,0.001]
[1759171295664,0.91896657,114040.0,114030.0,0.001]
[1759171295861,1.71912657,114040.0,114030.0,0.001]
[1759171298169,0.91896657,114040.0,114030.0,0.001]
[1759171298467,1.0409507,114040.0,114030.0,0.001]
[1759171299370,1.38986041,114040.0,114030.0,0.001]
[1759171300066,1.38986041,114040.0,114030.0,0.0886405]
[1759171303273,1.0409507,114040.0,114030.0,0.0886405]
[1759171304268,1.0409107,114040.0,114030.0,0.0886405]
[1759171304573,0.2407907,114040.0,114030.0,0.0886405]
[1759171304969,1.0409107,114040.0,114030.0,0.0886405]
[1759171305274,1.1285511,114040.0,114020.0,0.73299241]
[1759171305474,0.03548,114030.0,114020.0,0.73299241]
[1759171305674,0.14287533,114030.0,114020.0,0.73299241]
[1759171307268,0.94299533,114030.0,114020.0,0.74199241]
[1759171307675,0.14287533,114030.0,114020.0,0.74199241]
[1759171307873,0.94299533,114030.0,114020.0,0.73299241]
[1759171308073,0.94299533,114030.0,114020.0,0.73899241]
[1759171312078,0.94299533,114030.0,114020.0,0.3900827]
[1759171312273,0.94299533,114030.0,114020.0,0.73899241]
[1759171315679,0.97452917,114030.0,114020.0,0.73899241]
[1759171315880,0.97444917,114030.0,114020.0,0.73899241]
[1759171318183,0.17440917,114030.0,114020.0,0.73899241]
[1759171318482,0.97444917,114030.0,114020.0,0.73899241]
[1759171318683,0.17440917,114030.0,114020.0,0.73899241]
[1759171318983,0.97444917,114030.0,114020.0,0.73899241]
[1759171319185,0.08676867,114030.0,114020.0,0.73899241]
[1759171319982,0.03335483,114030.0,114020.0,1.48790212]
[1759171320380,0.03335483,114030.0,114020.0,1.93903241]
[1759171321292,0.03335483,114030.0,114020.0,1.13899241]
[1759171321593,0.03335483,114030.0,114020.0,1.93903241]
[1759171322792,0.03335483,114030.0,114020.0,1.13899241]
[1759171322992,0.03335483,114030.0,114020.0,1.93899241]
[1759171323795,0.12099533,114030.0,114020.0,1.93899241]
[1759171324797,0.12099533,114030.0,114020.0,1.13899241]
[1759171324997,0.12099533,114030.0,114020.0,1.93899241]
[1759171325495,0.12099533,114030.0,114020.0,1.13899241]
[1759171325798,0.12099533,114030.0,114020.0,1.1862898]
[1759171326191,0.13885283,114030.0,114020.0,1.9862498]
[1759171327598,0.13885283,114030.0,114020.0,1.1862898]
[1759171327799,0.13885283,114030.0,114020.0,1.9862498]
[1759171329599,0.13885283,114030.0,114020.0,1.1862898]
[1759171329796,0.13885283,114030.0,114020.0,0.6986476]
[1759171329797,0.16126283,114030.0,114020.0,0.6986476]
[1759171329999,0.16126283,114030.0,114020.0,0.3024405]
[1759171331603,0.16126283,114030.0,114020.0,0.006]
[1759171335007,0.16126283,114030.0,114020.0,0.0936482]
[1759171337498,0.16126283,114030.0,114020.0,0.44255791]
[1759171338609,0.16126283,114030.0,114020.0,0.35490971]
[1759171339710,0.16126283,114030.0,114020.0,0.0936482]
[1759171340395,0.16126283,114030.0,114020.0,0.44255791]
[1759171341702,0.16126283,114030.0,114020.0,0.80335791]
[1759171342707,0.16126283,114030.0,114020.0,0.8506553]
[1759171342900,0.16126283,114030.0,114020.0,0.80335791]
[1759171343100,0.16126283,114030.0,114020.0,0.8506553]
[1759171344010,0.16126283,114030.0,114020.0,0.80335791]
[1759171344211,0.16126283,114030.0,114020.0,0.8506553]
[1759171345702,0.16126283,114030.0,114020.0,0.80335791]
[1759171346208,0.16126283,114030.0,114020.0,0.8506553]
[1759171347408,0.07362233,114030.0,114020.0,0.8506553]
[1759171349008,0.16126283,114030.0,114020.0,0.8506553]
[1759171349811,0.07362233,114030.0,114020.0,0.8506553]
[1759171350906,0.07362233,114030.0,114020.0,1.6504953]
[1759171355813,0.07362233,114030.0,114020.0,1.60319791]
[1759171356317,0.07362233,114030.0,114020.0,1.15216224]
[1759171356509,0.07362233,114030.0,114020.0,1.95196224]
[1759171361208,0.16126283,114030.0,114020.0,1.95196224]
[1759171362720,0.16126283,114030.0,114020.0,1.15216224]
[1759171362920,0.16126283,114030.0,114020.0,1.95192224]
[1759171363523,0.16126283,114030.0,114020.0,1.15216224]
[1759171363721,0.16126283,114030.0,114020.0,1.95192224]
[1759171364617,0.16126283,114030.0,114020.0,1.15216224]
[1759171364819,0.16126283,114030.0,114020.0,1.95192224]
[1759171365821,0.16126283,114030.0,114020.0,1.99921963]
[1759171366617,0.16126283,114030.0,114020.0,1.19945963]
[1759171366818,0.16126283,114030.0,114020.0,1.30146559]
[1759171367017,0.16126283,114030.0,114020.0,1.99917963]
[1759171367222,0.16126283,114030.0,114020.0,1.30146559]
[1759171367525,0.16126283,114030.0,114020.0,1.99917963]
[1759171380927,0.16140177,114030.0,114020.0,1.19945963]
[1759171381329,0.16140177,114030.0,114020.0,1.99909963]
[1759171382132,0.16140177,114030.0,114020.0,1.19945963]
[1759171382336,0.16140177,114030.0,114020.0,1.99909963]
[1759171382540,0.16140177,114030.0,114020.0,1.19945963]
[1759171382732,0.16140177,114030.0,114020.0,1.99909963]
[1759171385241,0.16140177,114030.0,114020.0,1.19945963]
[1759171385433,0.16140177,114030.0,114020.0,1.99909963]
[1759171385833,0.16140177,114030.0,114020.0,1.95180224]
[1759171387940,0.16140177,114030.0,114020.0,1.15216224]
[1759171388238,0.16140177,114030.0,114020.0,1.95180224]
[1759171388940,0.16140177,114030.0,114020.0,1.15216224]
[1759171389140,0.16140177,114030.0,114020.0,1.95176224]
[1759171392448,0.16140177,114030.0,114020.0,1.2540482]
[1759171392646,0.16140177,114030.0,114020.0,1.95176224]
[1759171393338,0.07376127,114030.0,114020.0,1.95176224]
[1759171393538,0.16140077,114030.0,114020.0,1.95176224]
[1759171394646,0.07376127,114030.0,114020.0,1.95176224]
[1759171395248,0.16140077,114030.0,114020.0,1.15216224]
[1759171395544,0.16140077,114030.0,114020.0,1.95172224]
[1759171395751,0.16140077,114030.0,114020.0,1.99901963]
[1759171397444,0.07376127,114030.0,114020.0,1.99901963]
[1759171397648,0.05135127,114030.0,114020.0,1.99901963]
[1759171397843,0.05135127,114030.0,114020.0,2.34787665]
[1759171398045,0.05135127,114030.0,114020.0,2.70057926]
[1759171398247,0.0314575,114030.0,114020.0,2.76326787]
[1759171400150,0.0314575,114030.0,114020.0,1.96370787]
[1759171400351,0.0314575,114030.0,114020.0,2.76326787]
[1759171400749,0.0314575,114030.0,114020.0,2.70057926]
[1759171401550,0.0314575,114030.0,114020.0,1.90101926]
[1759171401749,0.0314575,114030.0,114020.0,2.70053926]
[1759171402950,0.0314575,114030.0,114020.0,1.90101926]
[1759171403148,0.0314575,114030.0,114020.0,2.35164224]
[1759171404150,0.0314575,114030.0,114020.0,1.55216224]
[1759171404348,0.0314575,114030.0,114020.0,1.95164224]
[1759171404947,0.119097,114030.0,114020.0,1.95164224]
[1759171406853,0.119097,114030.0,114020.0,1.99893845]
[1759171407954,0.119097,114030.0,114020.0,1.95164224]
[1759171408454,0.119097,114030.0,114020.0,1.99893538]
[1759171410153,0.0314575,114030.0,114020.0,1.99893538]
[1759171413854,0.0314575,114030.0,114020.0,2.3477924]
[1759171415258,0.0314575,114030.0,114020.0,1.99893538]
[1759171415652,0.0314575,114030.0,114020.0,1.19945538]
[1759171415852,0.0314575,114030.0,114020.0,1.99881538]
[1759171416258,0.0314575,114030.0,114020.0,1.64990113]
[1759171416459,0.0314575,114030.0,114020.0,1.30110134]
[1759171416658,0.0314575,114030.0,114020.0,0.80324799]
[1759171416960,0.0314575,114030.0,114020.0,1.60260799]
[1759171417862,0.0528275,114030.0,114020.0,1.60260799]
[1759171418554,0.0528275,114030.0,114020.0,1.60256799]
[1759171418759,0.0528275,114030.0,114020.0,0.80324799]
[1759171418961,0.0528275,114030.0,114020.0,1.60256799]
[1759171419649,0.0528275,114030.0,114020.0,0.80324799]
[1759171419855,0.0528275,114030.0,114020.0,1.64986741]
[1759171420056,0.0528275,114030.0,114020.0,1.64986804]
[1759171420463,0.0528275,114030.0,114020.0,0.85054804]
[1759171420663,0.140467,114030.0,114020.0,0.85054804]
[1759171420965,0.140467,114030.0,114020.0,1.64986804]
[1759171421561,0.0528275,114030.0,114020.0,1.64986804]
[1759171425767,0.140467,114030.0,114020.0,1.64986804]
[1759171426363,0.0528275,114030.0,114020.0,1.64986804]
[1759171426563,0.140467,114030.0,114020.0,1.64986804]
[1759171426758,0.0528275,114030.0,114020.0,1.64986804]
[1759171435786,0.07273288,114030.0,114020.0,1.60256799]
[1759171436277,0.05136288,114030.0,114020.0,1.60256799]
[1759171439279,0.07285288,114030.0,114020.0,1.60244799]
[1759171440884,0.07285288,114030.0,114020.0,0.80324799]
[1759171441083,0.07285288,114030.0,114020.0,1.60244799]
[1759171444081,0.07285288,114030.0,114020.0,0.80324799]
[1759171444489,0.07285288,114030.0,114020.0,1.60244799]
[1759171445791,0.07285288,114030.0,114020.0,1.64974804]
[1759171446188,0.05136288,114030.0,114020.0,1.64974804]
[1759171448794,0.0508354,114030.0,114020.0,1.64974804]
[1759171449991,0.05085312,114030.0,114020.0,1.95124778]
[1759171450594,0.05085312,114030.0,114020.0,1.95120778]
[1759171452397,0.05085312,114030.0,114020.0,1.15204778]
[1759171452802,0.05085312,114030.0,114020.0,1.95116778]
[1759171453703,0.05085312,114030.0,114020.0,1.15204778]
[1759171454000,0.05085312,114030.0,114020.0,1.95116778]
[1759171454396,0.05085312,114030.0,114020.0,1.15204778]
[1759171454795,0.05085312,114030.0,114020.0,1.95116778]
[1759171456000,0.05085312,114030.0,114020.0,1.9985229]
[1759171456692,0.05085312,114030.0,114020.0,1.1994029]
[1759171456896,0.05085312,114030.0,114020.0,1.9985229]
[1759171457802,0.05085312,114030.0,114020.0,1.1994029]
[1759171457997,0.0335231,114030.0,114020.0,1.9984829]
[1759171458605,0.0335231,114030.0,114020.0,1.1994029]
[1759171458805,0.0335231,114030.0,114020.0,1.64968311]
[1759171459905,0.0335231,114030.0,114020.0,1.9984829]
[1759171463604,0.0335231,114030.0,114020.0,1.1994029]
[1759171463808,0.0335231,114030.0,114020.0,1.9984429]
[1759171465909,0.0335231,114030.0,114020.0,1.95108778]
[1759171467909,0.03086016,114040.0,114030.0,0.0876395]
[1759171468105,0.03086016,114040.0,114030.0,1.99236834]
[1759171468410,0.03086016,114040.0,114030.0,1.94503908]
[1759171468702,0.03086016,114040.0,114030.0,1.14603908]
[1759171468902,0.03086016,114040.0,114030.0,1.94503908]
[1759171469299,0.03086016,114040.0,114030.0,1.14603908]
[1759171469498,0.03086016,114040.0,114030.0,1.94503908]
[1759171469810,0.03086016,114040.0,114030.0,1.992355]
[1759171471216,0.03086016,114040.0,114030.0,2.06111898]
[1759171475811,0.03086016,114040.0,114030.0,2.01380306]
[1759171476201,0.03086016,114040.0,114030.0,1.66490624]
[1759171476403,0.03086016,114040.0,114030.0,2.013609]
[1759171479814,0.05065325,114040.0,114030.0,2.013609]
[1759171484117,0.05065325,114040.0,114030.0,2.36231176]
[1759171484419,0.05065325,114040.0,114030.0,2.013489]
[1759171485314,0.03731325,114040.0,114030.0,2.36219176]
[1759171485619,0.01275,114050.0,114040.0,0.0876318]
[1759171485812,0.01275,114050.0,114040.0,1.541856]
[1759171487318,0.01275,114050.0,114040.0,1.55065622]
[1759171487519,0.01275,114050.0,114040.0,1.55365622]
[1759171488114,0.01275,114050.0,114040.0,1.55065622]
[1759171488716,0.01275,114050.0,114040.0,1.55365622]
[1759171489219,0.01275,114050.0,114040.0,2.35245622]
[1759171494432,0.01275,114050.0,114040.0,2.35237622]
[1759171495534,0.01275,114050.0,114040.0,2.35233622]
[1759171496336,0.01275,114050.0,114040.0,1.55365622]
[1759171496536,0.01275,114050.0,114040.0,2.35233622]
[1759171499838,0.01275,114050.0,114040.0,2.35229622]
[1759171500533,0.01275,114050.0,114040.0,1.55365622]
[1759171500737,0.01275,114050.0,114040.0,2.35229622]
[1759171501729,0.01275,114050.0,114040.0,1.55365622]
[1759171501928,0.01275,114050.0,114040.0,2.35225622]
[1759171507541,0.01275,114050.0,114040.0,2.36762891]
[1759171513647,0.01275,114050.0,114040.0,2.36750891]
[1759171514642,0.03007391,114060.0,114050.0,0.0876242]
[1759171514848,0.03007391,114060.0,114050.0,1.14582972]
[1759171515047,0.03007391,114060.0,114050.0,1.94426972]
[1759171515348,0.03007391,114060.0,114050.0,2.29297248]
[1759171515849,0.03007391,114060.0,114050.0,2.35566109]
[1759171516847,0.03907391,114060.0,114050.0,2.35566109]
[1759171518145,0.03907391,114060.0,114050.0,2.35562109]
[1759171518742,0.02642391,114060.0,114050.0,2.35562109]
[1759171520750,0.01217756,114060.0,114050.0,2.75562109]
[1759171521055,0.01217756,114060.0,114050.0,2.77129324]
[1759171521254,0.01379,114070.0,114060.0,0.0876165]
[1759171521455,0.01379,114070.0,114060.0,1.55753666]
[1759171522952,0.01379,114070.0,114060.0,2.35589666]
[1759171523154,0.01979,114070.0,114060.0,2.35589666]
[1759171523851,0.01383,114080.0,114070.0,0.0876089]
[1759171524047,0.01383,114080.0,114070.0,1.19305277]
[1759171524253,0.01383,114080.0,114070.0,1.99141277]
[1759171524851,0.01383,114080.0,114070.0,1.19305277]
[1759171525051,0.01383,114080.0,114070.0,1.99137277]
[1759171525556,0.01383,114080.0,114070.0,1.19305277]
[1759171525756,0.01383,114080.0,114070.0,1.99137277]
[1759171525958,0.03347923,114080.0,114070.0,1.94413442]
[1759171526356,0.03347923,114080.0,114070.0,1.14581442]
[1759171526556,0.04047923,114080.0,114070.0,1.14581442]
[1759171526857,0.03347923,114080.0,114070.0,1.94409442]
[1759171528157,0.01383,114080.0,114070.0,1.94409442]
[1759171528354,0.0311022,114090.0,114070.0,2.29279718]
[1759171528664,0.01327,114090.0,114080.0,1.49450948]
[1759171528851,0.01327,114090.0,114080.0,2.29274948]
[1759171529551,0.02027,114090.0,114080.0,1.49450948]
[1759171529752,0.02027,114090.0,114080.0,2.29274948]
[1759171530152,0.01327,114090.0,114080.0,2.29274948]
[1759171530356,0.02027,114090.0,114080.0,1.49450948]
[1759171530552,0.02027,114090.0,114080.0,2.29270948]
[1759171530751,0.01327,114090.0,114080.0,2.29470948]
[1759171530963,0.01327,114090.0,114080.0,1.49650948]
[1759171531164,0.01327,114090.0,114080.0,2.29470948]
[1759171532155,0.01327,114090.0,114080.0,2.29770948]
[1759171532864,0.01327,114090.0,114080.0,2.29766948]
[1759171533565,0.01327,114090.0,114080.0,1.49950948]
[1759171533767,0.01327,114090.0,114080.0,2.29766948]
[1759171534365,0.01327,114090.0,114080.0,1.49950948]
[1759171534563,0.01327,114090.0,114080.0,2.29762948]
[1759171535765,0.01327,114090.0,114080.0,2.34486783]
[1759171538265,0.01327,114090.0,114080.0,1.99549017]
[1759171540771,0.01325,114100.0,114090.0,0.0875935]
[1759171540968,0.01325,114100.0,114090.0,1.14512412]
[1759171541472,0.01325,114100.0,114090.0,1.15396748]
[1759171541974,0.01425,114100.0,114090.0,1.15396748]
[1759171542866,0.01425,114100.0,114090.0,1.95192748]
[1759171544570,0.01425,114100.0,114090.0,1.15396748]
[1759171544771,0.01425,114100.0,114090.0,1.95192748]
[1759171545572,0.01425,114100.0,114090.0,1.15396748]
[1759171545772,0.01425,114100.0,114090.0,1.95192748]
[1759171549078,0.01425,114100.0,114090.0,1.99916583]
[1759171549576,0.01425,114100.0,114090.0,1.99908583]
[1759171551176,0.01425,114100.0,114090.0,1.20120583]
[1759171551376,0.01425,114100.0,114090.0,1.99908583]
[1759171551675,0.01425,114100.0,114090.0,1.20120583]
[1759171551874,0.01425,114100.0,114090.0,1.99908583]
[1759171552277,0.01425,114100.0,114090.0,1.20120583]
[1759171552470,0.01425,114100.0,114090.0,1.99904583]
[1759171552775,0.01425,114100.0,114090.0,1.20120583]
[1759171553176,0.01425,114100.0,114090.0,1.99904583]
[1759171553374,0.01425,114100.0,114090.0,1.99020247]
[1759171553678,0.01425,114100.0,114090.0,1.19236247]
[1759171553868,0.01425,114100.0,114090.0,1.99020247]
[1759171554267,0.01425,114100.0,114090.0,1.64183716]
[1759171554469,0.01425,114100.0,114090.0,1.19236247]
[1759171554667,0.01425,114100.0,114090.0,1.99020247]
[1759171555378,0.01425,114100.0,114090.0,1.9990116]
[1759171558376,0.01425,114100.0,114090.0,1.95177325]
[1759171563681,0.01425,114100.0,114090.0,1.15393325]
[1759171563881,0.01425,114100.0,114090.0,1.95165325]
[1759171565873,0.01425,114100.0,114090.0,1.99895762]
[1759171566278,0.03393741,114100.0,114090.0,1.99895762]
[1759171570782,0.03393741,114100.0,114090.0,1.99891762]
[1759171572788,0.03393741,114100.0,114090.0,1.99887762]
[1759171575379,0.01425,114100.0,114090.0,1.99887762]
[1759171575780,0.01425,114100.0,114090.0,2.01458513]
[1759171576481,0.01425,114100.0,114090.0,1.21694513]
[1759171576783,0.01425,114100.0,114090.0,2.01454513]
[1759171577186,0.01425,114100.0,114090.0,1.21694513]
[1759171577485,0.01425,114100.0,114090.0,2.01454513]
[1759171578184,0.01425,114100.0,114090.0,1.21694513]
[1759171578388,0.01425,114100.0,114090.0,2.01454513]
[1759171579687,0.01425,114100.0,114090.0,1.21694513]
[1759171579885,0.01425,114100.0,114090.0,2.01454513]
[1759171580990,0.01425,114100.0,114090.0,1.21694513]
[1759171581190,0.01425,114100.0,114090.0,2.01450513]
[1759171582693,0.01425,114100.0,114090.0,1.21694513]
[1759171582988,0.01425,114100.0,114090.0,2.01450513]
[1759171583392,0.01425,114100.0,114090.0,1.21694513]
[1759171583597,0.01425,114100.0,114090.0,2.01450513]
[1759171584092,0.01425,114100.0,114090.0,1.21694513]
[1759171584288,0.45544794,114100.0,114090.0,0.42381188]
[1759171584492,0.89139905,114100.0,114090.0,0.4396656]
[1759171584692,0.89007351,114100.0,114090.0,1.324819]
[1759171584993,0.56154241,114100.0,114090.0,1.29327163]
[1759171585191,0.56284035,114100.0,114090.0,1.2459534]
[1759171585392,0.56154241,114100.0,114090.0,1.2459534]